[Event "Late-Titled-Tuesday-Blitz-February-13-2024"]
[Site "Chess.com"]
[Date "2024.02.13"]
[Round "8"]
[White "laskakid"]
[Black "GlavkonVVS"]
[Result "0-1"]
[WhiteElo "2404"]
[BlackElo "2560"]
[TimeControl "180+1"]
[EndTime "15:28:35 PST"]
[Termination "GlavkonVVS won on time"]

1. d4 {[%clk 0:03:00.9]} 1... Nf6 {[%clk 0:02:50.6]} 2. c4 {[%clk 0:03:01]} 2...
c5 {[%clk 0:02:50.5]} 3. d5 {[%clk 0:03:00.6]} 3... e6 {[%clk 0:02:50.5]} 4. Nc3
{[%clk 0:03:00.1]} 4... exd5 {[%clk 0:02:50.4]} 5. cxd5 {[%clk 0:03:00.4]} 5...
d6 {[%clk 0:02:50.7]} 6. Nf3 {[%clk 0:03:00.7]} 6... g6 {[%clk 0:02:49]} 7. h3
{[%clk 0:03:01]} 7... Bg7 {[%clk 0:02:48]} 8. Bf4 {[%clk 0:03:01.1]} 8... O-O
{[%clk 0:02:47.8]} 9. e3 {[%clk 0:03:01]} 9... Re8 {[%clk 0:02:41.9]} 10. Nd2
{[%clk 0:02:59.2]} 10... a6 {[%clk 0:02:36.4]} 11. a4 {[%clk 0:02:58.6]} 11...
Nbd7 {[%clk 0:02:30.8]} 12. Be2 {[%clk 0:02:50.6]} 12... Ne5 {[%clk 0:02:30.1]}
13. Bh2 {[%clk 0:02:50]} 13... Rb8 {[%clk 0:02:29.2]} 14. O-O {[%clk 0:02:45.6]}
14... Qc7 {[%clk 0:01:55.8]} 15. a5 {[%clk 0:02:31]} 15... b5 {[%clk 0:01:52]}
16. axb6 {[%clk 0:02:29]} 16... Rxb6 {[%clk 0:01:47]} 17. f4 {[%clk 0:02:23.1]}
17... Ned7 {[%clk 0:01:44.6]} 18. Nc4 {[%clk 0:02:23.4]} 18... Rb4 {[%clk
0:01:43.1]} 19. f5 {[%clk 0:01:56.9]} 19... Rxc4 {[%clk 0:01:31.7]} 20. Bxc4
{[%clk 0:01:53.3]} 20... Rxe3 {[%clk 0:01:31.5]} 21. fxg6 {[%clk 0:01:45.1]}
21... hxg6 {[%clk 0:01:30.6]} 22. Bxa6 {[%clk 0:01:38.4]} 22... Bxa6 {[%clk
0:01:11.5]} 23. Rxa6 {[%clk 0:01:38]} 23... Ne5 {[%clk 0:01:11.8]} 24. Qd2
{[%clk 0:01:21.8]} 24... Rd3 {[%clk 0:01:01.4]} 25. Qc2 {[%clk 0:01:12.9]} 25...
Nfd7 {[%clk 0:00:54.1]} 26. Ra8+ {[%clk 0:00:40.7]} 26... Kh7 {[%clk 0:00:53.7]}
27. Qf2 {[%clk 0:00:34.7]} 27... Bh6 {[%clk 0:00:20.6]} 28. Qh4 {[%clk
0:00:29.4]} 28... Rd4 {[%clk 0:00:16.4]} 29. Bf4 {[%clk 0:00:25.5]} 29... g5
{[%clk 0:00:14.8]} 30. Qh5 {[%clk 0:00:20.5]} 30... gxf4 {[%clk 0:00:13.9]} 31.
Rh8+ {[%clk 0:00:06.3]} 31... Kxh8 {[%clk 0:00:14]} 32. Qxh6+ {[%clk 0:00:06.8]}
32... Kg8 {[%clk 0:00:14.6]} 33. Qg5+ {[%clk 0:00:07.1]} 33... Ng6 {[%clk
0:00:14.4]} 34. h4 {[%clk 0:00:05.1]} 34... Ne5 {[%clk 0:00:13.4]} 35. h5 {[%clk
0:00:05.3]} 35... Qe7 {[%clk 0:00:13.8]} 36. Qh6 {[%clk 0:00:03.9]} 36... Nf8
{[%clk 0:00:13.4]} 37. Rxf4 {[%clk 0:00:02.7]} 37... Rxf4 {[%clk 0:00:13.6]} 38.
Qxf4 {[%clk 0:00:02.5]} 38... Nh7 {[%clk 0:00:14.3]} 39. Ne4 {[%clk 0:00:02.5]}
39... Kg7 {[%clk 0:00:14.1]} 40. h6+ {[%clk 0:00:01.8]} 40... Kg6 {[%clk
0:00:14.3]} 41. Ng3 {[%clk 0:00:01.5]} 41... Qg5 {[%clk 0:00:13.7]} 42. Qe4+
{[%clk 0:00:01]} 42... f5 {[%clk 0:00:13.7]} 0-1

[Event "Late-Titled-Tuesday-Blitz-February-13-2024"]
[Site "Chess.com"]
[Date "2024.02.13"]
[Round "8"]
[White "nindjaxx8"]
[Black "Quattroporte300"]
[Result "1-0"]
[WhiteElo "2562"]
[BlackElo "2415"]
[TimeControl "180+1"]
[EndTime "15:28:36 PST"]
[Termination "nindjaxx8 won on time"]

1. d4 {[%clk 0:02:57.1]} 1... Nf6 {[%clk 0:02:58.2]} 2. c4 {[%clk 0:02:51.4]}
2... b6 {[%clk 0:02:58.4]} 3. Nc3 {[%clk 0:02:48.8]} 3... Bb7 {[%clk 0:02:58.9]}
4. Bf4 {[%clk 0:02:47.4]} 4... g6 {[%clk 0:02:57.8]} 5. Nf3 {[%clk 0:02:33.2]}
5... Bg7 {[%clk 0:02:58.3]} 6. e3 {[%clk 0:02:33.3]} 6... Nh5 {[%clk 0:02:56.2]}
7. Bg3 {[%clk 0:02:33.3]} 7... Nxg3 {[%clk 0:02:55.6]} 8. hxg3 {[%clk
0:02:34.2]} 8... d6 {[%clk 0:02:52.5]} 9. Qc2 {[%clk 0:02:33.3]} 9... e5 {[%clk
0:02:50.2]} 10. dxe5 {[%clk 0:02:32.6]} 10... dxe5 {[%clk 0:02:50]} 11. Rd1
{[%clk 0:02:15.2]} 11... Nd7 {[%clk 0:02:49.2]} 12. Be2 {[%clk 0:02:13.9]} 12...
Qe7 {[%clk 0:02:44.4]} 13. O-O {[%clk 0:02:09.8]} 13... O-O {[%clk 0:02:40.8]}
14. Nd5 {[%clk 0:02:07.9]} 14... Bxd5 {[%clk 0:02:38.9]} 15. cxd5 {[%clk
0:02:08.8]} 15... Qd6 {[%clk 0:02:24.8]} 16. Nd2 {[%clk 0:01:49.7]} 16... f5
{[%clk 0:02:17.8]} 17. Nc4 {[%clk 0:01:48.5]} 17... Qc5 {[%clk 0:02:12.7]} 18.
Qb3 {[%clk 0:01:45.2]} 18... Kh8 {[%clk 0:02:09.8]} 19. d6 {[%clk 0:01:38.8]}
19... c6 {[%clk 0:02:00.8]} 20. Rd2 {[%clk 0:01:13.1]} 20... a5 {[%clk
0:01:46.8]} 21. a4 {[%clk 0:01:08.6]} 21... e4 {[%clk 0:01:35.9]} 22. Rfd1
{[%clk 0:01:04.3]} 22... Rad8 {[%clk 0:01:26.1]} 23. Na3 {[%clk 0:00:56.8]}
23... Qb4 {[%clk 0:01:19.2]} 24. Qc2 {[%clk 0:00:48.2]} 24... Nc5 {[%clk
0:00:55.7]} 25. d7 {[%clk 0:00:36.9]} 25... Qxa4 {[%clk 0:00:54.1]} 26. Qxa4
{[%clk 0:00:30.3]} 26... Nxa4 {[%clk 0:00:53]} 27. Nc4 {[%clk 0:00:31.2]} 27...
Rf7 {[%clk 0:00:38.6]} 28. Nd6 {[%clk 0:00:24.3]} 28... Rdxd7 {[%clk 0:00:18.3]}
29. Nxf7+ {[%clk 0:00:24.4]} 29... Rxf7 {[%clk 0:00:19.2]} 30. Bc4 {[%clk
0:00:14.6]} 30... Rf8 {[%clk 0:00:19]} 31. Bb3 {[%clk 0:00:06.5]} 31... Nxb2
{[%clk 0:00:17.5]} 32. Rc1 {[%clk 0:00:06.9]} 32... c5 {[%clk 0:00:16]} 33. Rd7
{[%clk 0:00:07]} 33... a4 {[%clk 0:00:13.9]} 34. Ba2 {[%clk 0:00:06.1]} 34...
Rb8 {[%clk 0:00:07.7]} 35. Ra7 {[%clk 0:00:04.1]} 35... h6 {[%clk 0:00:07.4]}
36. Bf7 {[%clk 0:00:03.5]} 36... Kh7 {[%clk 0:00:06.9]} 37. Be6 {[%clk
0:00:03.7]} 37... b5 {[%clk 0:00:04.2]} 38. Rxc5 {[%clk 0:00:03.4]} 38... Nd3
{[%clk 0:00:04.3]} 39. Rcc7 {[%clk 0:00:02.8]} 1-0

[Event "Late-Titled-Tuesday-Blitz-February-13-2024"]
[Site "Chess.com"]
[Date "2024.02.13"]
[Round "8"]
[White "ninguno46"]
[Black "OneTrickPony_82"]
[Result "1-0"]
[WhiteElo "2506"]
[BlackElo "2559"]
[TimeControl "180+1"]
[EndTime "15:28:40 PST"]
[Termination "ninguno46 won on time"]

1. e4 {[%clk 0:02:59]} 1... e5 {[%clk 0:02:59.6]} 2. Nf3 {[%clk 0:02:58.3]} 2...
Nc6 {[%clk 0:03:00.2]} 3. Nc3 {[%clk 0:02:57.5]} 3... Nf6 {[%clk 0:02:59.6]} 4.
d4 {[%clk 0:02:57.6]} 4... exd4 {[%clk 0:02:59.3]} 5. Nxd4 {[%clk 0:02:58.2]}
5... Bb4 {[%clk 0:02:59.7]} 6. Nxc6 {[%clk 0:02:58.3]} 6... bxc6 {[%clk
0:02:59.4]} 7. Bd3 {[%clk 0:02:58.2]} 7... O-O {[%clk 0:02:59.9]} 8. O-O {[%clk
0:02:57.4]} 8... d5 {[%clk 0:03:00.3]} 9. exd5 {[%clk 0:02:57.5]} 9... cxd5
{[%clk 0:03:00.8]} 10. Bg5 {[%clk 0:02:55.9]} 10... c6 {[%clk 0:02:59.7]} 11. h3
{[%clk 0:02:55.1]} 11... h6 {[%clk 0:02:52.8]} 12. Bh4 {[%clk 0:02:54.4]} 12...
Be6 {[%clk 0:02:42.2]} 13. Qf3 {[%clk 0:02:53.2]} 13... Be7 {[%clk 0:02:42.3]}
14. Rae1 {[%clk 0:02:51.6]} 14... Nd7 {[%clk 0:02:34.3]} 15. Bxe7 {[%clk
0:02:42.9]} 15... Qxe7 {[%clk 0:02:34]} 16. Ne2 {[%clk 0:02:42.9]} 16... Ne5
{[%clk 0:02:20.7]} 17. Qg3 {[%clk 0:02:40.2]} 17... Nxd3 {[%clk 0:02:19.2]} 18.
cxd3 {[%clk 0:02:35.3]} 18... Qf6 {[%clk 0:02:15.3]} 19. d4 {[%clk 0:02:32.3]}
19... Bf5 {[%clk 0:02:10.2]} 20. Rc1 {[%clk 0:02:29.3]} 20... Rfe8 {[%clk
0:02:02.5]} 21. Rfe1 {[%clk 0:02:24.6]} 21... Re6 {[%clk 0:01:52.6]} 22. Qc3
{[%clk 0:01:53.8]} 22... Rae8 {[%clk 0:01:45.9]} 23. Ng3 {[%clk 0:01:53.5]}
23... Bg6 {[%clk 0:01:35.9]} 24. Rxe6 {[%clk 0:01:52.5]} 24... Rxe6 {[%clk
0:01:30.9]} 25. Qd2 {[%clk 0:01:43.5]} 25... Qe7 {[%clk 0:01:25.2]} 26. a3
{[%clk 0:01:31.5]} 26... h5 {[%clk 0:01:19]} 27. Qf4 {[%clk 0:01:06.1]} 27... h4
{[%clk 0:01:17.9]} 28. Nf5 {[%clk 0:01:01.5]} 28... Qf6 {[%clk 0:01:02]} 29.
Qb8+ {[%clk 0:01:00.7]} 29... Kh7 {[%clk 0:00:59.2]} 30. Ne3 {[%clk 0:01:00.5]}
30... Qxd4 {[%clk 0:00:51.7]} 31. Rd1 {[%clk 0:01:00.1]} 31... Qb6 {[%clk
0:00:42]} 32. Qf4 {[%clk 0:00:57]} 32... Re4 {[%clk 0:00:42.1]} 33. Qg5 {[%clk
0:00:49.3]} 33... Qxb2 {[%clk 0:00:38]} 34. Ng4 {[%clk 0:00:47.8]} 34... Qxa3
{[%clk 0:00:19.2]} 35. Qxh4+ {[%clk 0:00:47.3]} 35... Kg8 {[%clk 0:00:19.7]} 36.
Rb1 {[%clk 0:00:44.3]} 36... Re8 {[%clk 0:00:17.3]} 37. Rf1 {[%clk 0:00:41.5]}
37... Qd6 {[%clk 0:00:15]} 38. Qg5 {[%clk 0:00:40.5]} 38... Qe7 {[%clk
0:00:14.2]} 39. Qd2 {[%clk 0:00:39.3]} 39... Qe2 {[%clk 0:00:13.2]} 40. Qa5
{[%clk 0:00:38.9]} 40... d4 {[%clk 0:00:09.3]} 41. Qc5 {[%clk 0:00:33.8]} 41...
d3 {[%clk 0:00:08.4]} 42. Qxc6 {[%clk 0:00:32.7]} 42... d2 {[%clk 0:00:07]} 43.
Kh2 {[%clk 0:00:28.1]} 43... Re6 {[%clk 0:00:03.6]} 44. Qc8+ {[%clk 0:00:27.3]}
44... Kh7 {[%clk 0:00:03.9]} 45. Rb1 {[%clk 0:00:16.4]} 45... d1=Q {[%clk
0:00:01.9]} 46. Rb8 {[%clk 0:00:15.8]} 1-0

[Event "Late-Titled-Tuesday-Blitz-February-13-2024"]
[Site "Chess.com"]
[Date "2024.02.13"]
[Round "8"]
[White "GaiozNigalidze"]
[Black "N_Mullodzhanov"]
[Result "1-0"]
[WhiteElo "2660"]
[BlackElo "2500"]
[TimeControl "180+1"]
[EndTime "15:28:44 PST"]
[Termination "GaiozNigalidze won by checkmate"]

1. e4 {[%clk 0:03:00.9]} 1... c6 {[%clk 0:03:00]} 2. d4 {[%clk 0:02:59.1]} 2...
d5 {[%clk 0:03:00.1]} 3. e5 {[%clk 0:02:59.2]} 3... Bf5 {[%clk 0:02:59.6]} 4. h4
{[%clk 0:02:59.4]} 4... h6 {[%clk 0:02:59.5]} 5. Bd3 {[%clk 0:02:57.2]} 5...
Bxd3 {[%clk 0:02:59.7]} 6. Qxd3 {[%clk 0:02:57.1]} 6... e6 {[%clk 0:03:00.3]} 7.
h5 {[%clk 0:02:57.2]} 7... c5 {[%clk 0:02:57.1]} 8. c3 {[%clk 0:02:56.6]} 8...
Nc6 {[%clk 0:02:56.2]} 9. Nf3 {[%clk 0:02:51.7]} 9... cxd4 {[%clk 0:02:51.2]}
10. cxd4 {[%clk 0:02:50.2]} 10... Rc8 {[%clk 0:02:51.2]} 11. Nc3 {[%clk
0:02:47.5]} 11... Nb4 {[%clk 0:02:46.6]} 12. Qe2 {[%clk 0:02:27.3]} 12... Qb6
{[%clk 0:02:36.8]} 13. a3 {[%clk 0:02:14.1]} 13... Nc6 {[%clk 0:02:36.8]} 14.
Rh4 {[%clk 0:02:13.4]} 14... Nge7 {[%clk 0:02:34]} 15. Rf4 {[%clk 0:02:03.5]}
15... Nf5 {[%clk 0:02:30]} 16. Nxd5 {[%clk 0:01:55.2]} 16... exd5 {[%clk
0:02:07.2]} 17. Rxf5 {[%clk 0:01:54.1]} 17... Nxd4 {[%clk 0:01:42.6]} 18. Nxd4
{[%clk 0:01:52.3]} 18... Qxd4 {[%clk 0:01:43.5]} 19. Qb5+ {[%clk 0:01:35.1]}
19... Rc6 {[%clk 0:01:37.3]} 20. Qxb7 {[%clk 0:01:35]} 20... Qe4+ {[%clk
0:01:33.9]} 21. Be3 {[%clk 0:01:34.9]} 21... Qxf5 {[%clk 0:01:20]} 22. Qxc6+
{[%clk 0:01:33.9]} 22... Qd7 {[%clk 0:01:19.6]} 23. Qa8+ {[%clk 0:01:33.3]}
23... Qd8 {[%clk 0:01:15.6]} 24. Qxa7 {[%clk 0:01:32.8]} 24... Be7 {[%clk
0:01:15.8]} 25. Bb6 {[%clk 0:01:04.4]} 25... Qc8 {[%clk 0:01:06]} 26. Rd1 {[%clk
0:00:50.1]} 26... O-O {[%clk 0:01:02.1]} 27. Qxe7 {[%clk 0:00:43.2]} 27... Qf5
{[%clk 0:01:00.5]} 28. Be3 {[%clk 0:00:32.7]} 28... Qxh5 {[%clk 0:00:57.2]} 29.
Rxd5 {[%clk 0:00:27.4]} 29... Qf5 {[%clk 0:00:52.8]} 30. Rd1 {[%clk 0:00:15.7]}
30... Qe4 {[%clk 0:00:47]} 31. Kf1 {[%clk 0:00:14.1]} 31... Ra8 {[%clk 0:00:32]}
32. Kg1 {[%clk 0:00:13.3]} 32... Kh7 {[%clk 0:00:32.1]} 33. Qc5 {[%clk
0:00:12.1]} 33... Qb7 {[%clk 0:00:23.3]} 34. Rc1 {[%clk 0:00:11.4]} 34... Ra4
{[%clk 0:00:22.2]} 35. Qc2+ {[%clk 0:00:10.9]} 35... Qe4 {[%clk 0:00:13.3]} 36.
Qxe4+ {[%clk 0:00:10.6]} 36... Rxe4 {[%clk 0:00:14.2]} 37. b4 {[%clk 0:00:11]}
37... Rxe5 {[%clk 0:00:14.6]} 38. a4 {[%clk 0:00:11.2]} 38... Re4 {[%clk
0:00:15.1]} 39. Rb1 {[%clk 0:00:11.2]} 39... f5 {[%clk 0:00:15.6]} 40. a5 {[%clk
0:00:11.3]} 40... f4 {[%clk 0:00:16.1]} 41. Bc5 {[%clk 0:00:11.8]} 41... Re5
{[%clk 0:00:15.7]} 42. a6 {[%clk 0:00:11.8]} 42... Re8 {[%clk 0:00:16]} 43. a7
{[%clk 0:00:12]} 43... f3 {[%clk 0:00:16.1]} 44. gxf3 {[%clk 0:00:11.7]} 44...
h5 {[%clk 0:00:14.7]} 45. b5 {[%clk 0:00:11.7]} 45... g5 {[%clk 0:00:14.3]} 46.
b6 {[%clk 0:00:11.9]} 46... g4 {[%clk 0:00:14.3]} 47. b7 {[%clk 0:00:11.9]}
47... gxf3 {[%clk 0:00:14.7]} 48. b8=Q {[%clk 0:00:12.1]} 48... Rg8+ {[%clk
0:00:15.1]} 49. Qxg8+ {[%clk 0:00:11.4]} 49... Kxg8 {[%clk 0:00:16]} 50. Rb7
{[%clk 0:00:10.8]} 50... h4 {[%clk 0:00:15.1]} 51. a8=Q# {[%clk 0:00:11]} 1-0

[Event "Late-Titled-Tuesday-Blitz-February-13-2024"]
[Site "Chess.com"]
[Date "2024.02.13"]
[Round "8"]
[White "Konavets"]
[Black "AradNazari"]
[Result "1-0"]
[WhiteElo "3017"]
[BlackElo "2775"]
[TimeControl "180+1"]
[EndTime "15:28:48 PST"]
[Termination "Konavets won on time"]

1. e4 {[%clk 0:03:00.9]} 1... c5 {[%clk 0:02:59.7]} 2. Nf3 {[%clk 0:03:01.3]}
2... d6 {[%clk 0:03:00.1]} 3. d4 {[%clk 0:03:01.2]} 3... cxd4 {[%clk 0:03:01]}
4. Nxd4 {[%clk 0:03:02.1]} 4... Nf6 {[%clk 0:03:01.7]} 5. f3 {[%clk 0:03:02.8]}
5... a6 {[%clk 0:03:01.1]} 6. c4 {[%clk 0:03:02]} 6... g6 {[%clk 0:02:53.2]} 7.
Nc3 {[%clk 0:03:02.1]} 7... Bg7 {[%clk 0:02:53.6]} 8. Be3 {[%clk 0:03:02.1]}
8... O-O {[%clk 0:02:52.2]} 9. Qd2 {[%clk 0:03:02.4]} 9... Nc6 {[%clk
0:02:52.5]} 10. Rc1 {[%clk 0:02:57.2]} 10... Nxd4 {[%clk 0:02:50.6]} 11. Bxd4
{[%clk 0:02:58.1]} 11... Be6 {[%clk 0:02:51]} 12. b3 {[%clk 0:02:57.8]} 12...
Qa5 {[%clk 0:02:45.8]} 13. Be2 {[%clk 0:02:55.4]} 13... Rfc8 {[%clk 0:02:43.8]}
14. O-O {[%clk 0:02:42.2]} 14... b5 {[%clk 0:02:37.6]} 15. cxb5 {[%clk
0:02:40.6]} 15... axb5 {[%clk 0:02:35.8]} 16. Rfd1 {[%clk 0:02:41.3]} 16... Nd7
{[%clk 0:02:15.6]} 17. Bxg7 {[%clk 0:02:23.7]} 17... Kxg7 {[%clk 0:02:16.5]} 18.
Bxb5 {[%clk 0:02:24.2]} 18... Ne5 {[%clk 0:01:14.2]} 19. Be2 {[%clk 0:02:20.6]}
19... Rc7 {[%clk 0:01:01.6]} 20. f4 {[%clk 0:02:18]} 20... Rac8 {[%clk
0:00:42.1]} 21. fxe5 {[%clk 0:02:14.2]} 21... dxe5 {[%clk 0:00:32.2]} 22. Bc4
{[%clk 0:01:11.5]} 22... Bxc4 {[%clk 0:00:25.8]} 23. Na4 {[%clk 0:01:11.9]}
23... Qxd2 {[%clk 0:00:12.3]} 24. Rxd2 {[%clk 0:01:12.8]} 24... Bb5 {[%clk
0:00:09.9]} 25. Rxc7 {[%clk 0:01:12.9]} 25... Rxc7 {[%clk 0:00:10.8]} 26. Nb6
{[%clk 0:01:13.8]} 26... f5 {[%clk 0:00:08.1]} 27. a4 {[%clk 0:01:11.9]} 27...
Rc1+ {[%clk 0:00:07.2]} 28. Kf2 {[%clk 0:01:12.4]} 28... Rf1+ {[%clk 0:00:07.8]}
29. Kg3 {[%clk 0:01:13.1]} 29... f4+ {[%clk 0:00:08.2]} 30. Kh3 {[%clk
0:01:09.6]} 30... Bc6 {[%clk 0:00:08.3]} 31. Re2 {[%clk 0:00:54.3]} 31... Rb1
{[%clk 0:00:06.9]} 32. Nc4 {[%clk 0:00:53]} 32... Rxb3+ {[%clk 0:00:07.1]} 33.
g3 {[%clk 0:00:52.5]} 33... Bd7+ {[%clk 0:00:05.5]} 34. Kh4 {[%clk 0:00:51.3]}
34... h6 {[%clk 0:00:05.9]} 35. Nxe5 {[%clk 0:00:48.8]} 35... g5+ {[%clk
0:00:04.1]} 36. Kh5 {[%clk 0:00:49.4]} 36... Be8+ {[%clk 0:00:04.6]} 37. Kg4
{[%clk 0:00:48.9]} 37... fxg3 {[%clk 0:00:04.2]} 38. Kf5 {[%clk 0:00:23.9]}
38... Bxa4 {[%clk 0:00:04.2]} 39. hxg3 {[%clk 0:00:20]} 39... Rxg3 {[%clk
0:00:05.1]} 40. Ra2 {[%clk 0:00:20.3]} 40... Be8 {[%clk 0:00:04.4]} 41. Ra7
{[%clk 0:00:17.8]} 41... Kf8 {[%clk 0:00:02.8]} 42. Ra8 {[%clk 0:00:18.4]} 42...
Rg1 {[%clk 0:00:02.1]} 43. Ke6 {[%clk 0:00:17.8]} 43... Rf1 {[%clk 0:00:02.1]}
44. Nd7+ {[%clk 0:00:16.4]} 44... Kg7 {[%clk 0:00:02.3]} 45. Rxe8 {[%clk
0:00:17.3]} 45... g4 {[%clk 0:00:02.7]} 46. Rxe7+ {[%clk 0:00:17.7]} 46... Kg6
{[%clk 0:00:03.4]} 47. Ne5+ {[%clk 0:00:18.4]} 47... Kh5 {[%clk 0:00:02.2]} 48.
Rg7 {[%clk 0:00:18.6]} 1-0

[Event "Late-Titled-Tuesday-Blitz-February-13-2024"]
[Site "Chess.com"]
[Date "2024.02.13"]
[Round "8"]
[White "RandomNoob04"]
[Black "Flaccidmoves"]
[Result "1/2-1/2"]
[WhiteElo "2610"]
[BlackElo "2444"]
[TimeControl "180+1"]
[EndTime "15:28:49 PST"]
[Termination "Game drawn by repetition"]

1. e4 {[%clk 0:03:00.9]} 1... e6 {[%clk 0:02:58.6]} 2. d4 {[%clk 0:03:00.8]}
2... d5 {[%clk 0:02:59.2]} 3. e5 {[%clk 0:03:01.4]} 3... c5 {[%clk 0:02:59.6]}
4. c3 {[%clk 0:03:02.1]} 4... Nc6 {[%clk 0:03:00.1]} 5. Nf3 {[%clk 0:03:02.8]}
5... Bd7 {[%clk 0:03:00.3]} 6. Bd3 {[%clk 0:03:03.3]} 6... Qb6 {[%clk
0:02:59.3]} 7. O-O {[%clk 0:03:03.9]} 7... cxd4 {[%clk 0:02:58.8]} 8. cxd4
{[%clk 0:03:04.8]} 8... Nxd4 {[%clk 0:02:59]} 9. Nxd4 {[%clk 0:03:05.7]} 9...
Qxd4 {[%clk 0:02:59.2]} 10. Nc3 {[%clk 0:03:06.6]} 10... Ne7 {[%clk 0:02:50.2]}
11. Nb5 {[%clk 0:03:03.8]} 11... Qxe5 {[%clk 0:02:42.8]} 12. Re1 {[%clk
0:02:58.3]} 12... Qb8 {[%clk 0:02:39.4]} 13. Qf3 {[%clk 0:02:56.3]} 13... Bxb5
{[%clk 0:02:32.1]} 14. Bxb5+ {[%clk 0:02:57.2]} 14... Nc6 {[%clk 0:02:32.1]} 15.
Qxd5 {[%clk 0:02:49]} 15... Qd6 {[%clk 0:02:27.3]} 16. Qf3 {[%clk 0:02:48.5]}
16... Be7 {[%clk 0:02:21.7]} 17. Bf4 {[%clk 0:02:46]} 17... Qc5 {[%clk
0:02:20.8]} 18. Re5 {[%clk 0:02:38.3]} 18... Qb6 {[%clk 0:02:12.4]} 19. Bg5
{[%clk 0:02:06.7]} 19... f6 {[%clk 0:01:33.9]} 20. Bxc6+ {[%clk 0:01:56.1]}
20... Qxc6 {[%clk 0:01:20]} 21. Qxc6+ {[%clk 0:01:56.7]} 21... bxc6 {[%clk
0:01:19.5]} 22. Rxe6 {[%clk 0:01:57.6]} 22... fxg5 {[%clk 0:01:01.1]} 23. Rae1
{[%clk 0:01:57.1]} 23... O-O-O {[%clk 0:00:55.8]} 24. Rxe7 {[%clk 0:01:58]}
24... Rd7 {[%clk 0:00:55.7]} 25. g3 {[%clk 0:01:53.4]} 25... Rhd8 {[%clk
0:00:51.6]} 26. Kg2 {[%clk 0:01:44.9]} 26... Rxe7 {[%clk 0:00:46.9]} 27. Rxe7
{[%clk 0:01:45.8]} 27... Rd7 {[%clk 0:00:47.5]} 28. Rxd7 {[%clk 0:01:39.2]}
28... Kxd7 {[%clk 0:00:48.4]} 29. Kf3 {[%clk 0:01:39.9]} 29... Ke6 {[%clk
0:00:47.7]} 30. Ke4 {[%clk 0:01:40.5]} 30... c5 {[%clk 0:00:39.7]} 31. b3 {[%clk
0:01:28.7]} 31... h5 {[%clk 0:00:36.3]} 32. f4 {[%clk 0:01:17.3]} 32... gxf4
{[%clk 0:00:34.3]} 33. Kxf4 {[%clk 0:01:18.2]} 33... Kf6 {[%clk 0:00:28.9]} 34.
h4 {[%clk 0:01:15.9]} 34... g6 {[%clk 0:00:26]} 35. a3 {[%clk 0:01:06.4]} 35...
a6 {[%clk 0:00:25.2]} 36. Ke4 {[%clk 0:00:37.9]} 36... Ke6 {[%clk 0:00:25.1]}
37. Kf4 {[%clk 0:00:38.6]} 37... Kf6 {[%clk 0:00:25.3]} 38. b4 {[%clk
0:00:18.8]} 38... cxb4 {[%clk 0:00:19.7]} 39. axb4 {[%clk 0:00:19.7]} 39... Ke6
{[%clk 0:00:18.5]} 40. g4 {[%clk 0:00:18.5]} 40... Kf6 {[%clk 0:00:17.9]} 41.
gxh5 {[%clk 0:00:11]} 41... gxh5 {[%clk 0:00:18.8]} 42. Ke4 {[%clk 0:00:11]}
42... Ke6 {[%clk 0:00:19.2]} 43. Kd4 {[%clk 0:00:11.5]} 43... Kd6 {[%clk
0:00:19.6]} 44. Kc4 {[%clk 0:00:12.1]} 44... Kc6 {[%clk 0:00:20]} 45. Kd4 {[%clk
0:00:11.2]} 45... Kd6 {[%clk 0:00:20.4]} 46. Kc3 {[%clk 0:00:03.5]} 46... Kd5
{[%clk 0:00:17.1]} 47. Kb3 {[%clk 0:00:03.9]} 47... Kd6 {[%clk 0:00:15.3]} 48.
Ka4 {[%clk 0:00:03.3]} 48... Kc6 {[%clk 0:00:15.1]} 49. Ka5 {[%clk 0:00:03.9]}
49... Kb7 {[%clk 0:00:15.4]} 50. Ka4 {[%clk 0:00:01.8]} 50... Kb6 {[%clk
0:00:15.3]} 51. Ka3 {[%clk 0:00:02.5]} 51... Kb5 {[%clk 0:00:15.2]} 52. Kb3
{[%clk 0:00:03.2]} 52... Kb6 {[%clk 0:00:14.3]} 53. Kc4 {[%clk 0:00:04]} 53...
Kc6 {[%clk 0:00:14.6]} 54. Kd4 {[%clk 0:00:04.3]} 54... Kd6 {[%clk 0:00:15]}
1/2-1/2